[Event "3rd Gujarat GM Open 2022"]
[Site "Ahmedabad"]
[Date "2022.04.06"]
[Round "9.14"]
[White "Karthikeyan, P.."]
[Black "Ratnakaran, K.."]
[Result "0-1"]
[ECO "A40"]
[WhiteElo "2396"]
[BlackElo "2316"]
[Annotator "TA"]
[PlyCount "156"]
[EventDate "2022.03.31"]
[EventType "swiss"]
[EventCountry "IND"]
[SourceTitle "playchess.com"]
[Source "ChessBase"]
[SourceQuality "1"]
[TimeControl "5400+30"]

{[%evp 118,156,-1212,-1143,-809,-1109,-1040,-1198,-338,-1145,-1008,-889,-1028,-937,-512,-434,-412,-1562,-1416,-856,-618,-5197,-5700,-5700,-5110,-29958,-29949,-29949,-6601,-29963,-29964,-29973,-29974,-29972,-29975,-29975,-29976,-29976,-29977,-29977,-29978]} 1. d4 {[%emt 1:31:00]} c5 {[%emt 1:31:00]} 2. d5 {[%emt 0:00:30]} d6 {[%emt 0:00:30]} 3. c4 {[%emt 0:00:30]} g6 {[%emt 0:00:30]} 4. Nf3 {[%emt 0:00:30]} Bg7 {[%emt 0:00:30]} 5. e4 {[%emt 0:00:30]} a6 {[%emt 0:00:30]} 6. Be2 {[%emt 0:00:30]} Bg4 {[%emt 0:00:30]} 7. Nfd2 {[%emt 0:00:30]} Bxe2 {[%emt 0:00:30]} 8. Qxe2 {[%emt 0:00:30]} Nd7 {[%emt 0:00:30]} 9. O-O {[%emt 0:00:30]} h5 {[%emt 0:00:30]} 10. Nf3 {[%emt 0:00:30]} h4 {[%emt 0:00:30]} 11. h3 {[%emt 0:00:30]} Qc7 {[%emt 0:00:30]} 12. Ng5 {[%emt 0:00:30]} Ngf6 {[%emt 0:00:30]} 13. f4 {[%emt 0:00:30]} Nh5 {[%emt 0:00:30]} 14. Qd3 {[%emt 0:00:30]} Ng3 {[%emt 0:00:30]} 15. Re1 {[%emt 0:00:30]} Bd4+ {[%emt 0:00:30]} 16. Kh2 {[%emt 0:00:30]} Nf6 {[%emt 0:00:30]} 17. Nc3 {[%emt 0:00:30]} Rh5 {[%emt 0:00:30]} 18. Be3 {[%emt 0:00:30]} Bxc3 {[%emt 0:00:30]} 19. bxc3 {[%emt 0:00:30]} Nh7 {[%emt 0:00:30]} 20. Nxh7 {[%emt 0:00:30]} Rxh7 {[%emt 0:00:30]} 21. Bf2 {[%emt 0:00:30]} Nh5 {[%emt 0:00:30]} 22. Qf3 {[%emt 0:00:30]} Ng7 {[%emt 0:00:30]} 23. f5 {[%emt 0:00:30]} g5 {[%emt 0:00:30]} 24. f6 {[%emt 0:00:30]} Nh5 {[%emt 0:00:30]} 25. Qf5 {[%emt 0:00:30]} Nxf6 {[%emt 0:00:30]} 26. e5 {[%emt 0:00:30]} dxe5 {[%emt 0:00:30]} 27. d6 {[%emt 0:00:30]} Qxd6 {[%emt 0:00:30]} 28. Rad1 {[%emt 0:00:30]} Qe6 {[%emt 0:00:30]} 29. Qxe6 {[%emt 0:00:30]} fxe6 {[%emt 0:00:30]} 30. Rxe5 g4 {[%emt 0:00:30]} 31. Bxc5 {[%emt 0:01:00]} Nd7 {[%emt 0:00:30]} 32. Rg5 {[%emt 0:00:30]} g3+ {[%emt 0:00:30]} 33. Kg1 {[%emt 0:00:30]} O-O-O {[%emt 0:00:30]} 34. Be3 {[%emt 0:00:30]} e5 {[%emt 0:00:30]} 35. Rf1 {[%emt 0:00:30]} Kc7 {[%emt 0:00:30]} 36. c5 {[%emt 0:00:30]} Kc6 {[%emt 0:00:30]} 37. c4 {[%emt 0:00:30]} a5 {[%emt 0:00:30]} 38. a4 {[%emt 0:00:30]} Nxc5 {[%emt 0:00:30]} 39. Bxc5 {[%emt 0:00:30]} Kxc5 {[%emt 0:00:30]} 40. Rxe5+ {[%emt 0:00:30]} Kc6 {[%emt 0:00:30]} 41. Rxa5 {[%emt 0:00:30]} Rd4 {[%emt 0:00:30]} 42. Ra8 {[%emt 0:00:30]} e5 {[%emt 0:00:30]} 43. Re8 {[%emt 0:00:30]} Rxc4 {[%emt 0:00:30]} 44. Rxe5 {[%emt 0:00:30]} Rxa4 {[%emt 0:00:30]} 45. Rc1+ {[%emt 0:00:30]} Kb6 {[%emt 0:00:30]} 46. Rb1+ {[%emt 0:00:30]} Ka6 {[%emt 0:00:30]} 47. Reb5 {[%emt 0:00:30]} Rc7 {[%emt 0:00:30]} 48. Rb6+ {[%emt 0:00:30]} Ka7 {[%emt 0:00:30]} 49. R6b2 {[%emt 0:00:30]} Rac4 {[%emt 0:00:30]} 50. Ra1+ {[%emt 0:00:30]} Kb8 {[%emt 0:00:30]} 51. Kf1 {[%emt 0:00:30]} Rc1+ {[%emt 0:00:30]} 52. Rxc1 {[%emt 0:00:30]} Rxc1+ {[%emt 0:00:30]} 53. Ke2 {[%emt 0:00:30]} Rc4 {[%emt 0:00:30]} 54. Kd3 {[%emt 0:00:30]} Ra4 {[%emt 0:00:30]} 55. Rc2 {[%emt 0:00:30]} Ka7 {[%emt 0:00:30]} 56. Rc7 {[%emt 0:00:30]} Ka6 {[%emt 0:00:30]} 57. Rh7 {[%emt 0:00:30]} Rf4 {[%emt 0:00:30]} 58. Kc3 {[%emt 0:00:30]} b6 {[%emt 0:00:30]} 59. Rh5 {[%emt 0:00:30]} Ra4 {[%emt 0:00:30]} 60. Kb3 {[%emt 0:00:30]} Re4 {[%emt 0:00:30]} 61. Kc3 {[%emt 0:00:30]} b5 {[%emt 0:00:30]} ({And not} 61... Re2 62. Rxh4 Rxg2 63. Rg4 $11) 62. Rh8 {[%emt 0:00:30]} Kb6 $2 {[%emt 0:00:30]} (62... Rc4+ 63. Kb3 Re4) 63. Rh7 $2 {[%emt 0:00:30]} (63. Rb8+ Kc5 64. Rc8+ Kd5 65. Rd8+ Kc6 66. Rc8+ Kd5 67. Rd8+ Kc6 68. Rc8+ Kd7 69. Rh8) 63... Rc4+ {[%emt 0:00:30]} 64. Kb3 {[%emt 0:00:30]} Rf4 {[%emt 0:00:30]} 65. Rh5 {[%emt 0:00:30]} Re4 {[%emt 0:00:30]} 66. Kc3 {[%emt 0:00:30]} Ka5 {[%emt 0:00:30]} 67. Rh8 (67. Kb3 $142 Rb4+ 68. Ka3) 67... b4+ $19 {[%emt 0:00:30]} 68. Kb3 {[%emt 0:01:00]} Re3+ {[%emt 0:00:30]} 69. Kb2 {[%emt 0:00:30]} Ka4 {[%emt 0:00:30]} 70. Ra8+ {[%emt 0:00:30]} Kb5 {[%emt 0:00:30]} 71. Rh8 {[%emt 0:00:30]} Kc4 {[%emt 0:00:30]} 72. Rxh4+ {[%emt 0:00:30] [#]} Kd3 $1 {[%emt 0:00:30]} 73. Rxb4 {[%emt 0:00:30]} Re2+ {[%emt 0:00:30]} 74. Kc1 {[%emt 0:00:30]} Rxg2 {[%emt 0:00:30]} 75. Rb3+ {[%emt 0:00:30]} Ke2 {[%emt 0:00:30]} 76. Kc2 {[%emt 0:00:30]} Rg1 {[%emt 0:00:30]} 77. Rb8 {[%emt 0:00:30]} g2 {[%emt 0:00:30]} 78. Rg8 {[%emt 0:00:30]} Kf3 {[%emt 0:00:30]} 0-1

[Event "3rd Gujarat GM Open 2022"]
[Site "Ahmedabad"]
[Date "2022.04.06"]
[Round "9.15"]
[White "Arpita, Mukherjee"]
[Black "Sidhant, Mohapatra"]
[Result "1/2-1/2"]
[ECO "C77"]
[WhiteElo "2260"]
[BlackElo "2359"]
[Annotator "TA"]
[PlyCount "150"]
[EventDate "2022.03.31"]
[EventType "swiss"]
[EventCountry "IND"]
[SourceTitle "playchess.com"]
[Source "ChessBase"]
[SourceQuality "1"]
[TimeControl "5400+30"]

{[%evp 109,150,-8,-8,-8,-8,-8,-8,-8,-8,-8,-8,-8,-8,-8,-8,-8,0,0,0,-8,-8,-8,-8,-8,-8,-8,-8,-8,-8,-8,-8,-8,-8,-8,-8,-8,0,-8,-8,-8,8,8,8]} 1. e4 {[%emt 0:08:40]} e5 {[%emt 0:00:29]} 2. Nf3 {[%emt 0:00:55]} Nc6 {[%emt 0:00:07]} 3. Bb5 {[%emt 0:00:08]} a6 {[%emt 0:00:19]} 4. Ba4 {[%emt 0:00:05]} Nf6 {[%emt 0:00:08]} 5. d3 {[%emt 0:00:10]} d6 {[%emt 0:01:19]} 6. c3 {[%emt 0:00:13]} g6 {[%emt 0:00:20]} 7. Nbd2 {[%emt 0:00:10]} Bg7 {[%emt 0:00:19]} 8. Nf1 {[%emt 0:00:06]} O-O {[%emt 0:03:48]} 9. Ng3 {[%emt 0:00:09]} Bd7 {[%emt 0:09:09]} 10. O-O {[%emt 0:00:25]} Qe8 {[%emt 0:00:04]} 11. Re1 {[%emt 0:02:30]} Kh8 {[%emt 0:01:29]} 12. Bc2 {[%emt 0:12:03]} Ng8 {[%emt 0:02:04]} 13. h3 {[%emt 0:05:31]} Qe7 {[%emt 0:14:17]} 14. d4 {[%emt 0:03:08]} Rae8 {[%emt 0:00:08]} 15. a4 {[%emt 0:04:42]} exd4 {[%emt 0:08:03]} 16. cxd4 {[%emt 0:02:05]} Nb4 {[%emt 0:00:06]} 17. Bb3 {[%emt 0:00:59]} a5 {[%emt 0:01:21]} 18. Bd2 {[%emt 0:04:00]} Be6 {[%emt 0:05:57]} 19. d5 {[%emt 0:04:57]} Bd7 {[%emt 0:00:37]} 20. Bc3 {[%emt 0:00:22]} Bxc3 {[%emt 0:09:41]} 21. bxc3 {[%emt 0:00:16]} Na6 {[%emt 0:00:01]} 22. e5 {[%emt 0:02:49]} Nc5 {[%emt 0:00:23]} 23. Bc2 {[%emt 0:00:27]} dxe5 {[%emt 0:08:50]} 24. Nxe5 {[%emt 0:01:04]} Qf6 {[%emt 0:00:03]} 25. Qd4 {[%emt 0:02:49]} b6 {[%emt 0:00:10]} 26. Re3 {[%emt 0:04:10]} Qg7 {[%emt 0:01:28]} 27. Rae1 {[%emt 0:05:59]} f6 {[%emt 0:00:39]} 28. Nxd7 {[%emt 0:01:17]} Qxd7 {[%emt 0:01:51]} 29. h4 {[%emt 0:05:32]} Rxe3 {[%emt 0:00:51]} 30. Rxe3 {[%emt 0:00:08]} Re8 {[%emt 0:00:08]} 31. h5 {[%emt 0:01:09]} Rxe3 {[%emt 0:00:17]} 32. Qxe3 {[%emt 0:00:57]} Kg7 {[%emt 0:01:49]} 33. Qf4 {[%emt 0:01:36]} Nh6 {[%emt 0:01:02]} 34. Ne4 {[%emt 0:08:52]} Nxe4 {[%emt 0:00:23]} 35. Qxe4 {[%emt 0:00:06]} Nf5 {[%emt 0:01:50]} 36. c4 {[%emt 0:00:53]} Nd6 {[%emt 0:05:11]} 37. Qd4 {[%emt 0:01:40]} Qe7 {[%emt 0:02:43]} 38. hxg6 {[%emt 0:01:01]} hxg6 {[%emt 0:00:08]} 39. c5 {[%emt 0:00:19]} bxc5 {[%emt 0:13:52]} 40. Qxc5 {[%emt 0:00:07]} Qe1+ {[%emt 0:00:09]} 41. Kh2 {[%emt 0:00:04]} Qe5+ {[%emt 0:00:02]} 42. Kg1 {[%emt 0:01:13]} Nb7 {[%emt 0:00:37]} 43. Qb5 {[%emt 0:03:14]} Qe1+ {[%emt 0:00:26]} 44. Kh2 {[%emt 0:00:07]} Nd6 {[%emt 0:00:22]} 45. Qd3 {[%emt 0:04:15]} Qe5+ {[%emt 0:01:34]} 46. g3 {[%emt 0:00:50]} f5 {[%emt 0:00:08]} 47. Qd2 {[%emt 0:07:10]} Qb2 {[%emt 0:01:32]} 48. Qe2 {[%emt 0:02:10]} Qc3 {[%emt 0:00:38]} 49. Kg2 {[%emt 0:01:28]} Nf7 {[%emt 0:00:09]} 50. Qd3 {[%emt 0:00:37]} Qxd3 {[%emt 0:01:52]} 51. Bxd3 {[%emt 0:00:01]} Ne5 {[%emt 0:00:00]} 52. Bb5 {[%emt 0:00:20]} Ng4 {[%emt 0:00:11]} 53. Bc6 {[%emt 0:00:52]} Kf6 {[%emt 0:00:33]} 54. f4 {[%emt 0:01:15]} Ke7 {[%emt 0:01:11]} 55. Kf3 {[%emt 0:00:01]} Nf6 {[%emt 0:00:30]} 56. Ke3 {[%emt 0:00:07]} Kd6 {[%emt 0:00:46]} 57. Kd4 {[%emt 0:00:01]} Nh5 {[%emt 0:00:14]} 58. Be8 {[%emt 0:00:18]} Nxg3 {[%emt 0:00:06]} 59. Bxg6 {[%emt 0:00:07]} Ne2+ {[%emt 0:00:05]} 60. Kc4 {[%emt 0:00:20]} Nxf4 {[%emt 0:00:05]} 61. Bxf5 {[%emt 0:00:30]} Nxd5 {[%emt 0:00:03]} 62. Kb5 {[%emt 0:00:13]} Nb6 {[%emt 0:01:42]} 63. Kxa5 {[%emt 0:01:20]} Kc5 {[%emt 0:00:07]} 64. Bc2 {[%emt 0:00:39]} Nc4+ {[%emt 0:00:11]} 65. Ka6 {[%emt 0:00:07]} Kb4 {[%emt 0:00:06]} 66. Kb7 {[%emt 0:01:26]} c5 {[%emt 0:00:01]} 67. Kc6 {[%emt 0:00:13]} Na5+ {[%emt 0:00:18]} 68. Kd5 {[%emt 0:00:05]} c4 {[%emt 0:00:03]} 69. Kd4 {[%emt 0:00:37]} Nb3+ {[%emt 0:00:05]} 70. Kd5 {[%emt 0:01:04]} c3 {[%emt 0:01:25]} 71. Bh7 {[%emt 0:00:34]} Na5 {[%emt 0:01:02]} 72. Kd4 {[%emt 0:00:08]} Nb3+ {[%emt 0:00:06]} 73. Kd5 $1 {[%emt 0:00:04]} Nc5 {[%emt 0:00:27]} 74. a5 {[%emt 0:00:43]} Ne4 {[%emt 0:00:24]} 75. Bxe4 {[%emt 0:00:07]} Kxa5 {[%emt 0:00:02]} 1/2-1/2

[Event "3rd Gujarat GM Open 2022"]
[Site "Ahmedabad"]
[Date "2022.04.06"]
[Round "9.16"]
[White "Jain Kashish Manoj"]
[Black "Konguvel, Ponnuswamy"]
[Result "1-0"]
[ECO "B31"]
[WhiteElo "2162"]
[BlackElo "2358"]
[Annotator "TA"]
[PlyCount "99"]
[EventDate "2022.03.31"]
[EventType "swiss"]
[EventCountry "IND"]
[SourceTitle "playchess.com"]
[Source "ChessBase"]
[SourceQuality "1"]
[TimeControl "5400+30"]

{[%evp 58,99,0,0,0,3,11,0,464,452,857,407,403,392,335,8,97,8,8,8,8,8,9,9,10,10,83,83,113,113,760,673,555,519,2459,2467,2459,2427,2405,2395,2251,2154,1988,460]} 1. e4 {[%emt 0:00:18]} c5 {[%emt 0:00:15]} 2. Nf3 {[%emt 0:00:12]} Nc6 {[%emt 0:00:27]} 3. Bb5 {[%emt 0:00:16]} g6 {[%emt 0:00:38]} 4. O-O {[%emt 0:00:37]} Bg7 {[%emt 0:00:11]} 5. Re1 {[%emt 0:01:21]} e5 {[%emt 0:01:24]} 6. Nc3 {[%emt 0:01:28]} Nge7 {[%emt 0:02:17]} 7. a3 {[%emt 0:01:14]} O-O {[%emt 0:02:52]} 8. Bc4 {[%emt 0:00:59]} d6 {[%emt 0:03:12]} 9. Rb1 {[%emt 0:05:40]} Be6 {[%emt 0:12:05]} 10. Nd5 {[%emt 0:06:59]} h6 {[%emt 0:01:06]} 11. b4 {[%emt 0:02:12]} b6 {[%emt 0:00:25]} 12. d3 {[%emt 0:00:34]} Nd4 {[%emt 0:09:37]} 13. Nxe7+ {[%emt 0:16:11]} Qxe7 {[%emt 0:00:11]} 14. Nd2 {[%emt 0:00:17]} Rac8 {[%emt 0:23:25]} 15. c3 {[%emt 0:05:45]} Nc6 {[%emt 0:01:16]} 16. Bd5 {[%emt 0:10:23]} Qd7 {[%emt 0:04:13]} 17. Qb3 {[%emt 0:14:14]} Bxd5 {[%emt 0:13:05]} 18. exd5 {[%emt 0:00:36]} Ne7 {[%emt 0:00:01]} 19. c4 {[%emt 0:01:45]} f5 {[%emt 0:01:49]} 20. bxc5 {[%emt 0:01:19]} Rxc5 {[%emt 0:04:13]} 21. a4 {[%emt 0:01:41]} g5 {[%emt 0:01:47]} 22. Ba3 {[%emt 0:00:49]} Rc7 {[%emt 0:00:22]} 23. Qb5 {[%emt 0:00:40]} Ng6 {[%emt 0:00:41]} 24. a5 {[%emt 0:04:26]} bxa5 {[%emt 0:00:55]} 25. Qxd7 {[%emt 0:09:28]} Rxd7 {[%emt 0:00:01]} 26. g3 {[%emt 0:00:39]} e4 {[%emt 0:00:51]} 27. dxe4 {[%emt 0:04:56]} Bc3 {[%emt 0:00:04]} 28. exf5 {[%emt 0:03:30]} Bxd2 {[%emt 0:12:40]} 29. Re6 {[%emt 0:00:54]} Ne5 {[%emt 0:01:04]} 30. Bxd6 {[%emt 0:00:30]} Nf3+ {[%emt 0:01:07]} 31. Kg2 {[%emt 0:00:48]} Rxf5 {[%emt 0:00:12]} 32. c5 $1 {[%emt 0:05:49]} Bb4 $2 {[%emt 0:01:54][%mdl 8192]} (32... Rdf7 $11 33. c6 Ne1+ 34. Kh3 g4+ 35. Kxg4 Rg5+ 36. Kh3 Rh5+ 37. Kg4 Rg5+ 38. Kh3 Rh5+ 39. Kg4 Rg5+) 33. c6 $18 {[%emt 0:00:00]} Rxd6 {[%emt 0:00:10]} (33... Rdf7 $142 34. c7 Rxc7) 34. Rxb4 {[%emt 0:00:00]} (34. Re8+ $142 Rf8 35. Rxf8+ Kxf8 36. c7) 34... Rdxd5 $18 {[%emt 0:01:46]} (34... axb4 $2 35. c7 Rxe6 36. c8=Q+ Rf8 37. Qxe6+ Kh7 38. Qe7+ Kg8 39. d6 $18) (34... Rxe6 $2 35. Rb8+ Kf7 36. c7 Ne1+ 37. Kg1 Nf3+ 38. Kg2 Ne1+ 39. Kg1 Nf3+ 40. Kg2 $18) 35. Rb7 {[%emt 0:00:57]} Rc5 {[%emt 0:01:05]} 36. Re8+ $2 {[%emt 0:00:31]} (36. c7 $18) 36... Rf8 $16 {[%emt 0:00:02]} 37. Rxf8+ {[%emt 0:00:28]} ({White should try} 37. Ree7 $1 $16 {[%cal Re7g7] Intending Rg7+ and mate.} Ne1+ 38. Kf1 (38. Rxe1 Rxc6 39. Ree7 Rf5 $16)) 37... Kxf8 $11 {[%emt 0:00:00]} 38. c7 {[%emt 0:00:01]} Ne1+ {[%emt 0:01:29]} 39. Kf1 {[%emt 0:00:01]} Ke8 {[%emt 0:00:06]} 40. Kxe1 {[%emt 0:00:12]} Kd7 {[%emt 0:01:01]} 41. Rxa7 {[%emt 0:00:14]} Rxc7 {[%emt 0:00:27]} (41... g4 $11 {remains equal.}) 42. Rxa5 $16 {[%emt 0:00:01]} Rc1+ {[%emt 0:00:32] [#]} 43. Ke2 $1 {[%emt 0:00:01]} Rh1 $2 {[%emt 0:00:02][%mdl 8192] [#]} (43... Rc6 $16) 44. h4 $1 $18 {[%emt 0:00:40]} gxh4 {[%emt 0:00:38]} 45. Rh5 {[%emt 0:00:01]} h3 {[%emt 0:00:46]} (45... Ra1 $142 46. gxh4 (46. Rxh4 Ra2+ 47. Kf3 Ra6 $16) 46... Ra6) 46. Rxh6 $18 {[%emt 0:00:05]} Ke7 {[%emt 0:00:09]} 47. Kf3 {[%emt 0:00:11]} Kf7 {[%emt 0:00:11]} 48. g4 {[%emt 0:00:45]} h2 {[%emt 0:01:05]} 49. Rh4 {[%emt 0:00:35]} Kg6 {[%emt 0:00:34]} 50. Kg3 {[%emt 0:01:02]} (50. Kg2 $142 Ra1 51. f3) 1-0

[Event "3rd Gujarat GM Open 2022"]
[Site "Ahmedabad"]
[Date "2022.04.06"]
[Round "9.17"]
[White "Chanda, Sandipan"]
[Black "Ram Aravind L N"]
[Result "1-0"]
[ECO "D02"]
[WhiteElo "2485"]
[BlackElo "2127"]
[Annotator "TA"]
[PlyCount "69"]
[EventDate "2022.03.31"]
[EventType "swiss"]
[EventCountry "IND"]
[SourceTitle "playchess.com"]
[Source "ChessBase"]
[SourceQuality "1"]
[TimeControl "5400+30"]

{[%evp 22,69,34,28,34,26,44,39,20,22,37,0,0,0,4,0,0,0,0,0,0,0,0,2,0,0,0,0,0,0,0,0,0,0,18,18,18,9,18,18,17,22,89,81,65,29,85,76,1289,1259]} 1. d4 {[%emt 0:00:03]} d5 {[%emt 0:06:46]} 2. Nf3 {[%emt 0:01:00]} Nf6 {[%emt 0:00:21]} 3. e3 {[%emt 0:00:32]} e6 {[%emt 0:01:32]} 4. Nbd2 {[%emt 0:01:13]} Bd6 {[%emt 0:03:24]} 5. c4 {[%emt 0:00:19]} b6 {[%emt 0:03:14]} 6. b4 {[%emt 0:02:14]} c5 {[%emt 0:07:22]} 7. bxc5 {[%emt 0:00:53]} bxc5 {[%emt 0:00:02]} 8. cxd5 {[%emt 0:00:24]} Nxd5 {[%emt 0:04:27]} 9. Ne4 {[%emt 0:00:35]} O-O {[%emt 0:10:08]} 10. Nxd6 {[%emt 0:02:42]} Qxd6 {[%emt 0:00:49]} 11. Ba3 {[%emt 0:00:15]} Nb4 {[%emt 0:03:25]} 12. Be2 {[%emt 0:05:33]} a5 {[%emt 0:02:49]} 13. O-O {[%emt 0:00:53]} Ba6 {[%emt 0:03:22]} 14. Rc1 {[%emt 0:00:33]} cxd4 {[%emt 0:02:40]} 15. Nxd4 {[%emt 0:01:26]} Rd8 {[%emt 0:07:39]} 16. Qa4 {[%emt 0:13:54]} (16. Bf3 $5 {[%cal Rf3a8]} Bxf1 17. Bxa8 $14) 16... Bxe2 {[%emt 0:04:26]} 17. Nxe2 {[%emt 0:00:10]} Nd7 {[%emt 0:03:03]} 18. Nd4 {[%emt 0:04:26]} Qb6 {[%emt 0:05:36]} 19. Nb3 {[%emt 0:08:27]} Ne5 {[%emt 0:11:21]} 20. Rc5 {[%emt 0:02:32]} Ned3 {[%emt 0:01:01]} 21. Rxa5 {[%emt 0:14:32]} Rxa5 {[%emt 0:00:05]} 22. Nxa5 {[%emt 0:03:06]} Ra8 {[%emt 0:00:18]} 23. Bxb4 {[%emt 0:00:39]} Qxb4 {[%emt 0:01:09]} 24. Qxb4 {[%emt 0:00:41]} Nxb4 {[%emt 0:00:01]} 25. a3 {[%emt 0:01:55]} Nc2 {[%emt 0:00:21]} 26. Nc4 {[%emt 0:00:21]} Ra4 $1 {[%emt 0:00:18]} 27. Rb1 {[%emt 0:01:01]} h6 {[%emt 0:04:19]} 28. Ne5 {[%emt 0:03:29]} Rxa3 {[%emt 0:00:13]} 29. Rb8+ {[%emt 0:00:13]} Kh7 {[%emt 0:00:01]} 30. h4 {[%emt 0:00:16]} Ra1+ {[%emt 0:04:34]} 31. Kh2 {[%emt 0:00:03]} Ra5 {[%emt 0:01:12]} (31... Ra7 $11 {remains equal.}) 32. Nxf7 $16 {[%emt 0:07:22]} Rf5 {[%emt 0:00:03]} 33. Rf8 {[%emt 0:01:39]} (33. Nd6 $5 {[%cal Rd6f5]} Rxf2 34. Rb2 $16) 33... Kg6 {[%emt 0:10:59]} (33... g6 $1 $11) 34. Nh8+ $16 {[%emt 0:00:25]} Kh5 $2 {[%emt 0:00:00][%mdl 8192] [#]} (34... Kh7 $16 35. Rxf5 exf5) 35. Kh3 $1 {[%emt 0:00:54]} ({Weaker is} 35. Rxf5+ exf5 36. Kh3 g5 $16) 1-0

[Event "3rd Gujarat GM Open 2022"]
[Site "Ahmedabad"]
[Date "2022.04.06"]
[Round "9.18"]
[White "Santu, Mondal"]
[Black "Raahul V S"]
[Result "0-1"]
[ECO "D11"]
[WhiteElo "2063"]
[BlackElo "2478"]
[Annotator "TA"]
[PlyCount "108"]
[EventDate "2022.03.31"]
[EventType "swiss"]
[EventCountry "IND"]
[SourceTitle "playchess.com"]
[Source "ChessBase"]
[SourceQuality "1"]
[TimeControl "5400+30"]

{[%evp 58,108,71,0,0,0,0,-38,-44,-39,-33,-50,-50,-39,-33,-34,-34,-34,-34,-37,-47,-91,-91,-83,-70,-137,-53,-48,-54,-63,-48,-80,-87,-229,-180,-131,-143,-390,-390,-296,-226,-640,-619,-585,-536,-612,-445,-893,-847,-1035,-983,-1132,-826]} 1. d4 {[%emt 0:00:30]} d5 {[%emt 0:08:41]} 2. Nf3 {[%emt 0:00:31]} Nf6 {[%emt 0:00:07]} 3. c4 {[%emt 0:00:20]} c6 {[%emt 0:00:26]} 4. g3 {[%emt 0:00:31]} dxc4 {[%emt 0:00:12]} 5. Bg2 {[%emt 0:00:32]} Nbd7 {[%emt 0:00:12]} 6. a4 {[%emt 0:00:36]} a5 {[%emt 0:00:06]} 7. O-O {[%emt 0:02:20]} Nb6 {[%emt 0:00:35]} 8. Qc2 {[%emt 0:05:57]} Nfd5 {[%emt 0:01:11]} 9. e4 {[%emt 0:04:03]} Nb4 {[%emt 0:02:24]} 10. Qe2 {[%emt 0:00:10]} e5 {[%emt 0:10:06]} 11. Be3 {[%emt 0:07:15]} exd4 {[%emt 0:17:02]} 12. Nxd4 {[%emt 0:00:40]} Bc5 {[%emt 0:08:24]} 13. Rd1 {[%emt 0:16:25]} Qe7 {[%emt 0:04:52]} 14. Nd2 {[%emt 0:13:33]} Nd3 {[%emt 0:14:31]} 15. b3 {[%emt 0:10:04]} Ne5 {[%emt 0:03:24]} 16. Nxc4 {[%emt 0:00:58]} Nbxc4 {[%emt 0:06:24]} 17. bxc4 {[%emt 0:00:17]} O-O {[%emt 0:03:20]} 18. Rab1 {[%emt 0:04:56]} Ng4 {[%emt 0:03:27]} 19. Nf5 {[%emt 0:04:09]} Bxf5 {[%emt 0:00:57]} 20. Bxc5 {[%emt 0:00:07]} Qxc5 {[%emt 0:00:22]} 21. exf5 {[%emt 0:00:06]} Ne5 {[%emt 0:02:07]} 22. f6 {[%emt 0:02:15]} gxf6 {[%emt 0:01:16]} 23. Qh5 {[%emt 0:03:50]} Qxc4 {[%emt 0:01:48]} 24. Qh6 {[%emt 0:01:07]} Ng4 {[%emt 0:04:19]} 25. Qh4 {[%emt 0:01:27]} Kg7 {[%emt 0:00:44]} 26. Rd6 {[%emt 0:01:10]} Rad8 {[%emt 0:02:49]} 27. Rxf6 {[%emt 0:00:15]} Ne5 {[%emt 0:00:20]} 28. Qh6+ {[%emt 0:06:46]} Kg8 {[%emt 0:00:19]} 29. Rf4 {[%emt 0:06:35]} Rd4 {[%emt 0:03:18]} 30. Qf6 {[%emt 0:03:56]} ({White should play} 30. Bf1 $16 Qd5 31. Rf5 (31. Rxb7 Rd1 $11)) 30... Rxf4 $11 {[%emt 0:00:38]} 31. gxf4 {[%emt 0:00:17]} Qc2 {[%emt 0:00:53]} 32. Re1 {[%emt 0:00:43]} (32. Qg5+ Ng6 33. Rxb7 Qxa4 $15) 32... Qxf2+ {[%emt 0:00:12]} 33. Kxf2 {[%emt 0:00:57]} Ng4+ {[%emt 0:00:01]} 34. Kg3 {[%emt 0:00:20]} Nxf6 {[%emt 0:00:02]} 35. Rb1 $1 {[%emt 0:00:14]} Rd8 {[%emt 0:00:55]} 36. Rxb7 {[%emt 0:00:13]} Rd3+ {[%emt 0:00:02]} 37. Kh4 {[%emt 0:00:28]} Nd5 {[%emt 0:01:59]} 38. Kg5 {[%emt 0:01:48]} Kg7 {[%emt 0:00:13]} 39. Bxd5 {[%emt 0:01:13]} Rxd5+ {[%emt 0:00:02]} ({Of course not} 39... cxd5 $6 40. Ra7 $11) 40. Kg4 {[%emt 0:00:10]} h5+ {[%emt 0:01:12]} 41. Kg3 {[%emt 0:01:23] [#]} (41. Kf3 $15) 41... Rd4 {[%emt 0:00:35]} (41... Kg6 $1 $17 {Hoping for ...Rd3+.} 42. Ra7 f6) 42. Rb6 $1 $15 {[%emt 0:00:27]} Rc4 {[%emt 0:00:09]} ({And not} 42... Rxa4 43. Rxc6 f6 44. Kf3 $17) 43. Ra6 $1 {[%emt 0:00:00]} Rc5 {[%emt 0:00:00]} ({Not} 43... Rxa4 44. Rxc6 f6 45. Rc5 $17) 44. Ra7 {[%emt 0:00:00]} Kg6 {[%emt 0:00:03]} 45. Rc7 {[%emt 0:02:22]} (45. Kh4 $17) 45... f6 {[%emt 0:00:46]} 46. Ra7 {[%emt 0:00:54]} Kf5 {[%emt 0:00:06]} 47. Kf3 $2 {[%emt 0:00:14]} (47. h3 $17) 47... h4 $19 {[%emt 0:00:31]} 48. Ke3 {[%emt 0:00:52]} Kg4 {[%emt 0:00:08]} 49. Rh7 $2 {[%emt 0:00:32]} (49. Rg7+ Kf5 50. Ra7) 49... Rc3+ $19 {[%emt 0:00:34]} 50. Kd4 {[%emt 0:00:26]} Rf3 {[%emt 0:00:37]} 51. Rg7+ {[%emt 0:00:13]} Kf5 {[%emt 0:00:22]} 52. Kc5 {[%emt 0:00:21]} (52. Rc7 $142) 52... Rxf4 $19 {[%emt 0:00:04]} 53. Kxc6 {[%emt 0:00:06]} Rxa4 {[%emt 0:00:02]} 54. Kb5 {[%emt 0:00:06]} Ra2 {[%emt 0:00:13]} 0-1